Workbook

Sheet паспорт
A1: ПАТ "УКРТРАНСГАЗ" | G1: ПАСПОРТ ФІЗИКО-ХІМІЧНИХ ПОКАЗНИКІВ ПРИРОДНОГО ГАЗУ № 140
A2: Філія "УМГ "Київтрансгаз" | G2: ПАТ "Укртрансгаз" УМГ "Київтрансгаз" Диканським ЛВУМГ та прийнятого ПАТ"Харківгаз"
A3: Солохівський п/м Диканське ЛВУМГ | G3: точка відбору проби ГРС 1-е Августа
A4: Вимірювальна хіміко-аналітична лабораторія | M4: Маршрут № 140
A5: Свідоцтво № 221-15 чинне до 31.12.2018 р. | K5: по газопроводу-відводу ГРС Сніжків | V5: за період з | X5: 2017-04-28 | Z5: по | AA5: 2017-04-28
A7: Число місяця | B7: Компонентний склад, % мол. | N7: Фізико-хімічні показники газу обчислені на основі компонентного складу, 101,325 кПа | X7: Температура точки роси за вологою (Р = 3.92 МПа), ºС | Y7: Температура точки роси за вуглеводнями, ºС | Z7: Вміст сірководню, мг/м3 | AA7: Вміст меркаптанової сірки, мг/м3 | AB7: Вміст механічних домішок, мг/м3
N8: Густина абсолютна, кг/м3,при 20 ºС, | O8: Температура вимірювання/згоряння при 20/25°С
B9: метан, С1 | C9: етан, С2 | D9: пропан, С3 | E9: ізо-бутан, і-С4 | F9: н-бутан, н-С4 | G9: нео-пентан, нео-С5 | H9: ізо-пентан, і-С5 | I9: н-пентан, н-С5 | J9: гексани та вищі, С6+ | K9: кисень, О2 | L9: азот, N2 | M9: діоксид вуглецю, CО2 | O9: Теплота згоряння нижча | R9: Теплота згоряння вища | U9: Число Воббе вище
O10: ккал/м3 | P10: МДж/м3 | Q10: кВт⋅год/м3 | R10: ккал/м3 | S10: МДж/м3 | T10: кВт⋅год/м3 | U10: ккал/м3 | V10: МДж/м3 | W10: кВт⋅год/м3
A11: 1 | O11: =P11*238.8459 -> 8417.072824 | P11: 35.2406 | Q11: =P11/3.6 -> 9.789055556 | R11: =S11*238.8459 -> 9319.767018 | S11: 39.02 | T11: =S11/3.6 -> 10.83888889 | AC11: =SUM(B11:M11)+$K$42+$N$42 -> 0
A12: 2 | O12: =P12*238.8459 -> 8417.072824 | P12: 35.2406 | Q12: 9.789055556 | R12: =S12*238.8459 -> 9319.767018 | S12: 39.02 | T12: 10.83888889 | AC12: 0
A13: 3 | B13: 90.5325 | C13: 4.7254 | D13: 1.2891 | E13: 0.1601 | F13: 0.222 | G13: 0.0041 | H13: 0.0577 | I13: 0.0416 | J13: 0.0754 | K13: 0.002 | L13: 0.3014 | M13: 2.5888 | N13: 0.7542 | O13: 8329.726878 | P13: 34.8749 | Q13: 9.687472222 | R13: 9225.112388 | S13: 38.6237 | T13: 10.72880556 | U13: =(V13*238.8459) -> 11658.11615 | V13: 48.8102 | W13: =V13/3.6 -> 13.55838889 | X13: -0.6 | Y13: -7 | AC13: 100.0001 | AD13: =IF(AC13=100,"ОК"," ") -> 
A14: 4 | O14: 8329.726878 | P14: 34.8749 | Q14: 9.687472222 | R14: 9225.112388 | S14: 38.6237 | T14: 10.72880556 | Z14: 1.16 | AA14: 0.88 | AB14: відс | AC14: 0 | AD14: =IF(AC14=100,"ОК"," ") -> 
A15: 5 | O15: 8329.726878 | P15: 34.8749 | Q15: 9.687472222 | R15: 9225.112388 | S15: 38.6237 | T15: 10.72880556 | AC15: 0
A16: 6 | O16: 8329.726878 | P16: 34.8749 | Q16: 9.687472222 | R16: 9225.112388 | S16: 38.6237 | T16: 10.72880556 | AC16: 0
A17: 7 | O17: 8329.726878 | P17: 34.8749 | Q17: 9.687472222 | R17: 9225.112388 | S17: 38.6237 | T17: 10.72880556 | AC17: 0
A18: 8 | O18: 8329.726878 | P18: 34.8749 | Q18: 9.687472222 | R18: 9225.112388 | S18: 38.6237 | T18: 10.72880556 | AC18: 0
A19: 9 | O19: 8329.726878 | P19: 34.8749 | Q19: 9.687472222 | R19: 9225.112388 | S19: 38.6237 | T19: 10.72880556 | AC19: 0
A20: 10 | B20: 90.2253 | C20: 5.0974 | D20: 1.459 | E20: 0.1766 | F20: 0.2533 | G20: 0.0043 | H20: 0.0619 | I20: 0.0454 | J20: 0.0796 | K20: 0.0014 | L20: 0.2963 | M20: 2.2995 | N20: 0.7561 | O20: 8409.835793 | P20: 35.2103 | Q20: =P20/3.6 -> 9.780638889 | R20: 9311.861219 | S20: 38.9869 | T20: =S20/3.6 -> 10.82969444 | U20: =(V20*238.8459) -> 11752.65136 | V20: 49.206 | W20: =V20/3.6 -> 13.66833333 | X20: -5.4 | Y20: -8.6 | AC20: 100 | AD20: ОК
A21: 11 | O21: 8409.835793 | P21: 35.2103 | Q21: 9.780638889 | R21: 9311.861219 | S21: 38.9869 | T21: 10.82969444 | AC21: 0
A22: 12 | O22: 8409.835793 | P22: 35.2103 | Q22: 9.780638889 | R22: 9311.861219 | S22: 38.9869 | T22: 10.82969444 | AC22: 0
A23: 13 | O23: 8409.835793 | P23: 35.2103 | Q23: 9.780638889 | R23: 9311.861219 | S23: 38.9869 | T23: 10.82969444 | AC23: 0
A24: 14 | O24: 8409.835793 | P24: 35.2103 | Q24: 9.780638889 | R24: 9311.861219 | S24: 38.9869 | T24: 10.82969444 | AC24: 0
A25: 15 | O25: 8409.835793 | P25: 35.2103 | Q25: 9.780638889 | R25: 9311.861219 | S25: 38.9869 | T25: 10.82969444 | AC25: 0
A26: 16 | O26: 8409.835793 | P26: 35.2103 | Q26: =P26/3.6 -> 9.780638889 | R26: 9311.861219 | S26: 38.9869 | T26: =S26/3.6 -> 10.82969444 | AC26: 0
A27: 17 | O27: 8409.835793 | P27: 35.2103 | Q27: 9.780638889 | R27: 9311.861219 | S27: 38.9869 | T27: 10.82969444 | AC27: 0
A28: 18 | B28: 90.621 | C28: 4.6809 | D28: 1.261 | E28: 0.1537 | F28: 0.2102 | G28: 0.0038 | H28: 0.0531 | I28: 0.0395 | J28: 0.0787 | K28: 0.0023 | L28: 0.3046 | M28: 2.5912 | N28: 0.7532 | O28: 8318.023429 | P28: 34.8259 | Q28: 9.673861111 | R28: 9213.504477 | S28: 38.5751 | T28: 10.71530556 | U28: 11650.64027 | V28: 48.7789 | W28: 13.54969444 | X28: -0.4 | Y28: -4.9 | AC28: 100 | AD28: ОК
A29: 19 | O29: 8318.023429 | P29: 34.8259 | Q29: 9.673861111 | R29: 9213.504477 | S29: 38.5751 | T29: 10.71530556 | AC29: 0
A30: 20 | O30: 8318.023429 | P30: 34.8259 | Q30: 9.673861111 | R30: 9213.504477 | S30: 38.5751 | T30: 10.71530556 | AC30: 0 | AD30: =IF(AC30=100,"ОК"," ") -> 
A31: 21 | O31: 8318.023429 | P31: 34.8259 | Q31: 9.673861111 | R31: 9213.504477 | S31: 38.5751 | T31: 10.71530556 | AC31: 0
A32: 22 | O32: 8318.023429 | P32: 34.8259 | Q32: 9.673861111 | R32: 9213.504477 | S32: 38.5751 | T32: 10.71530556 | AC32: 0
A33: 23 | O33: 8318.023429 | P33: 34.8259 | Q33: =P33/3.6 -> 9.673861111 | R33: 9213.504477 | S33: 38.5751 | T33: =S33/3.6 -> 10.71530556 | AC33: 0 | AD33: =IF(AC33=100,"ОК"," ") -> 
A34: 24 | B34: 90.7059 | C34: 4.637 | D34: 1.2516 | E34: 0.1523 | F34: 0.2081 | G34: 0.0038 | H34: 0.0525 | I34: 0.0389 | J34: 0.0782 | K34: 0.0026 | L34: 0.3023 | M34: 2.5669 | N34: 0.7525 | O34: 8315.969354 | P34: 34.8173 | Q34: 9.671472222 | R34: 9210.471134 | S34: 38.5624 | T34: 10.71177778 | U34: 11652.71823 | V34: 48.7876 | W34: 13.55211111 | X34: -6.3 | Y34: -1.2 | AC34: 100.0001
A35: 25 | O35: 8315.969354 | P35: 34.8173 | Q35: 9.671472222 | R35: 9210.471134 | S35: 38.5624 | T35: 10.71177778 | AC35: 0
A36: 26 | O36: 8315.969354 | P36: 34.8173 | Q36: 9.671472222 | R36: 9210.471134 | S36: 38.5624 | T36: =S36/3.6 -> 10.71177778 | AC36: 0
A37: 27 | O37: 8315.969354 | P37: 34.8173 | Q37: 9.671472222 | R37: 9210.471134 | S37: 38.5624 | T37: 10.71177778 | AC37: 0
A38: 28 | O38: 8315.969354 | P38: 34.8173 | Q38: 9.671472222 | R38: 9210.471134 | S38: 38.5624 | T38: 10.71177778 | AC38: 0
A39: 29 | O39: =P39*238.8459 -> 8315.969354 | P39: 34.8173 | Q39: =P39/3.6 -> 9.671472222 | R39: =S39*238.8459 -> 9210.471134 | S39: 38.5624 | T39: =S39/3.6 -> 10.71177778 | AC39: 0
A40: 30 | O40: 8315.969354 | P40: 34.8173 | Q40: 9.671472222 | R40: 9210.471134 | S40: 38.5624 | T40: 10.71177778 | AC40: 0
AC41: 0
A42: Рівень одоризації відповідає чинним нормативним документам | O42: 8352.569756 | P42: 34.97053856 | Q42: 9.714038489 | R42: 9250.21377 | S42: 38.72879447 | T42: 10.75799846
H43: Середньозважене значення теплоти згоряння:
B46: Заступник начальника Диканського ЛВУМГ Герасименко І.М. 28.04.2017
C47: Підрозділу підприємства, якому підпорядкована лабораторія | O47: прізвище | R47: підпис | V47: дата
B48: Керівник лабораторії Корж Л.М. 28.04.2017
C49: Лабораторія, де здійснювалось вимірювання газу | O49: прізвище | R49: підпис | V49: дата

Sheet додаток
A2: Додаток до Паспорту фізико-хімічних показників природного газу №140
A4: Область | B4: ГРС, прямий споживач | C4: Cередньозважене значення вищої теплоти згоряння
C5: МДж/м³ | D5: ккал/м³ | E5: кВт*год./м³
A6: Харківська область | B6: ГРС 1 Августа | C6: 38.72879447 | D6: 9250.21377 | E6: 10.75799846
A7: Середньозважене значення вищої теплоти згоряння по маршруту № 140 | C7: 38.72879447 | D7: 9250.21377 | E7: 10.75799846
A13: Заступник начальника Диканського ЛВУМГ Герасименко І.М. 28.04.2017
A14: Підрозділу підприємства, якому підпорядкована лабораторія | E14: прізвище | F14: підпис | H14: дата
A15: Керівник лабораторії Корж Л.М. 28.04.2017
A16: Лабораторія, де здійснювалось вимірювання газу | E16: прізвище | F16: підпис | H16: дата

Sheet variablesList (hidden)
A1: 3 | B1: x:\gaysin | C1: 10, 11, 24, 25, 127, 128, 132, 180, 207, 215 | D1: x:\
B2: x:\Illinci
B3: x:\Talne
